{"text_format":"1","workbook":"xlsx","n_sheets":1,"sheets":["Sheet1"],"not_rendered":{"charts":0,"images":0,"macros":1,"external_links":0,"defined_names":11,"comments":0,"pivot_tables":0},"unopened":[],"bounds":{"document_bytes":16777216,"sheet_cells":100000,"rows_first":2000,"rows_last":500,"rows_between":2000,"halvings":0,"cell_chars":16384,"cell_head_chars":4096},"cells_cut":0,"cells_raw":0,"read":"whole","date_system":"1900"}

{"sheet":"Sheet1","index":0,"n_rows":641,"n_cols":10,"rows_kept":641,"cut":false,"hidden":false,"merged":[[563,2,563,5],[564,2,564,5],[565,2,565,5],[566,2,566,5],[567,2,567,5],[554,2,554,5],[555,2,555,5],[556,2,556,5],[557,2,557,5],[558,2,558,5],[559,2,559,5],[560,2,560,5],[561,2,561,5],[562,2,562,5],[545,2,545,5],[546,2,546,5],[547,2,547,5],[548,2,548,5],[549,2,549,5],[550,2,550,5],[551,2,551,5],[552,2,552,5],[553,2,553,5],[536,2,536,5],[537,2,537,5],[538,2,538,5],[539,2,539,5],[540,2,540,5],[541,2,541,5],[542,2,542,5],[543,2,543,5],[544,2,544,5],[527,2,527,5],[528,2,528,5],[529,2,529,5],[530,2,530,5],[531,2,531,5],[532,2,532,5],[533,2,533,5],[534,2,534,5],[535,2,535,5],[518,2,518,5],[519,2,519,5],[520,2,520,5],[521,2,521,5],[522,2,522,5],[523,2,523,5],[524,2,524,5],[525,2,525,5],[526,2,526,5],[460,2,460,5],[461,2,461,5],[462,2,462,5],[463,2,463,5],[464,2,464,5],[455,2,455,5],[456,2,456,5],[457,2,457,5],[325,2,325,5],[326,2,326,5],[327,2,327,5],[328,2,328,5],[329,2,329,5],[330,2,330,5],[331,2,331,5],[332,2,332,5],[458,2,458,5],[459,2,459,5],[450,2,450,5],[451,2,451,5],[452,2,452,5],[453,2,453,5],[454,2,454,5],[445,2,445,5],[640,2,640,5],[470,2,470,5],[471,2,471,5],[472,2,472,5],[473,2,473,5],[639,2,639,5],[465,2,465,5],[466,2,466,5],[467,2,467,5],[468,2,468,5],[469,2,469,5],[474,2,474,5],[475,2,475,5],[476,2,476,5],[477,2,477,5],[478,2,478,5],[479,2,479,5],[480,2,480,5],[481,2,481,5],[482,2,482,5],[483,2,483,5],[484,2,484,5],[485,2,485,5],[486,2,486,5],[446,2,446,5],[447,2,447,5],[448,2,448,5],[449,2,449,5],[440,2,440,5],[441,2,441,5],[442,2,442,5],[443,2,443,5],[444,2,444,5],[435,2,435,5],[436,2,436,5],[437,2,437,5],[438,2,438,5],[439,2,439,5],[430,2,430,5],[431,2,431,5],[432,2,432,5],[433,2,433,5],[434,2,434,5],[425,2,425,5],[426,2,426,5],[427,2,427,5],[428,2,428,5],[429,2,429,5],[420,2,420,5],[421,2,421,5],[422,2,422,5],[423,2,423,5],[424,2,424,5],[415,2,415,5],[416,2,416,5],[417,2,417,5],[418,2,418,5],[419,2,419,5],[410,2,410,5],[411,2,411,5],[412,2,412,5],[413,2,413,5],[414,2,414,5],[405,2,405,5],[406,2,406,5],[407,2,407,5],[408,2,408,5],[409,2,409,5],[400,2,400,5],[401,2,401,5],[402,2,402,5],[403,2,403,5],[404,2,404,5],[395,2,395,5],[396,2,396,5],[397,2,397,5],[398,2,398,5],[399,2,399,5],[390,2,390,5],[391,2,391,5],[392,2,392,5],[393,2,393,5],[394,2,394,5],[385,2,385,5],[386,2,386,5],[387,2,387,5],[388,2,388,5],[389,2,389,5],[380,2,380,5],[381,2,381,5],[382,2,382,5],[383,2,383,5],[384,2,384,5],[375,2,375,5],[376,2,376,5],[377,2,377,5],[378,2,378,5],[379,2,379,5],[370,2,370,5],[371,2,371,5],[372,2,372,5],[373,2,373,5],[374,2,374,5],[365,2,365,5],[366,2,366,5],[367,2,367,5],[368,2,368,5],[369,2,369,5],[360,2,360,5],[361,2,361,5],[362,2,362,5],[363,2,363,5],[364,2,364,5],[355,2,355,5],[356,2,356,5],[357,2,357,5],[358,2,358,5],[359,2,359,5],[351,2,351,5],[352,2,352,5],[353,2,353,5],[354,2,354,5],[350,2,350,5],[333,2,333,5],[334,2,334,5],[335,2,335,5],[336,2,336,5],[337,2,337,5],[345,2,345,5],[346,2,346,5],[347,2,347,5],[348,2,348,5],[349,2,349,5],[343,2,343,5],[344,2,344,5],[338,2,338,5],[339,2,339,5],[0,0,0,3],[0,5,0,6],[11,5,12,5],[11,6,12,6],[13,5,14,5],[13,6,14,6],[340,2,340,5],[341,2,341,5],[342,2,342,5],[15,5,16,5],[15,6,16,6],[17,5,18,5],[17,6,18,6],[487,2,487,5],[488,2,488,5],[489,2,489,5],[490,2,490,5],[491,2,491,5],[492,2,492,5],[493,2,493,5],[494,2,494,5],[495,2,495,5],[496,2,496,5],[497,2,497,5],[498,2,498,5],[499,2,499,5],[500,2,500,5],[501,2,501,5],[502,2,502,5],[568,2,568,5],[569,2,569,5],[503,2,503,5],[504,2,504,5],[505,2,505,5],[506,2,506,5],[507,2,507,5],[508,2,508,5],[509,2,509,5],[510,2,510,5],[511,2,511,5],[512,2,512,5],[513,2,513,5],[514,2,514,5],[515,2,515,5],[516,2,516,5],[517,2,517,5],[570,2,570,5],[571,2,571,5],[572,2,572,5],[573,2,573,5],[574,2,574,5],[575,2,575,5],[576,2,576,5],[577,2,577,5],[578,2,578,5],[579,2,579,5],[580,2,580,5],[581,2,581,5],[582,2,582,5],[583,2,583,5],[584,2,584,5],[585,2,585,5],[586,2,586,5],[587,2,587,5],[588,2,588,5],[589,2,589,5],[590,2,590,5],[591,2,591,5],[592,2,592,5],[593,2,593,5],[594,2,594,5],[595,2,595,5],[596,2,596,5],[597,2,597,5],[598,2,598,5],[599,2,599,5],[600,2,600,5],[601,2,601,5],[602,2,602,5],[603,2,603,5],[604,2,604,5],[605,2,605,5],[606,2,606,5],[607,2,607,5],[608,2,608,5],[609,2,609,5],[610,2,610,5],[611,2,611,5],[612,2,612,5],[613,2,613,5],[614,2,614,5],[615,2,615,5],[616,2,616,5],[617,2,617,5],[618,2,618,5],[619,2,619,5],[620,2,620,5],[621,2,621,5],[622,2,622,5],[623,2,623,5],[633,2,633,5],[634,2,634,5],[635,2,635,5],[636,2,636,5],[637,2,637,5],[638,2,638,5],[624,2,624,5],[625,2,625,5],[626,2,626,5],[627,2,627,5],[628,2,628,5],[629,2,629,5],[630,2,630,5],[631,2,631,5],[632,2,632,5]]}
["21st Century Scholars Spreadsheet"]
[null,"Student Name (Last and First)","Enrolled?","Score Counted for Data?",null,null,null,null,"YES","Counter"]
[1,null,"YES","YES",null,"Counselor Name",null,null,"NO",{"$f":"COUNTA(B3)","v":0}]
[2,null,"YES","YES",null,"Total Eligible Eigth Grade Students",null,null,null,{"$f":"COUNTA(B4)","v":0}]
[3,null,"YES","YES",null,"Total Excluded",{"$f":"COUNTIFS(Counter,\"1\",Counted?,\"NO\")","v":0},null,null,0]
[4,null,"YES","YES",null,"Total Counted",null,null,null,0]
[5,null,"YES","YES",null,"Total Students Enrolled (Counted)",null,null,null,0]
[6,null,"YES","YES",null,"% of Students Enrolled (Counted)",{"$f":"Meeting_Target/Counted","v":{"$error":"#DIV/0!"}},null,null,0]
[7,null,"YES","YES",null,"Rating",{"$f":"IF(PMeeting_Target>=55%,\"HE\",IF(AND(PMeeting_Target>=45%,PMeeting_Target<55%),\"E\",IF(AND(PMeeting_Target>=26%,PMeeting_Target<45%),\"IN\",\"IE\")))","v":{"$error":"#DIV/0!"}},null,null,0]
[8,null,"YES","YES",null,null,null,null,null,0]
[9,null,"YES","YES",null,null,null,null,null,0]
[10,null,"YES","YES",null,"Highly Effective (HE):","Greater than or Equal to 55% of Eligible Eighth Grade Students Enrolled",null,null,0]
[11,null,"YES","YES",null,null,null,null,null,0]
[12,null,"YES","YES",null,"Effective (E):","Greater than or equal to 45% and less than 55% of Eligible Eighth Grade Students Enrolled",null,null,0]
[13,null,"YES","YES",null,null,null,null,null,0]
[14,null,"YES","YES",null,"Improvement Necessary (IN):","Greater than or Equal to 26% to less than 45% of Eligible Eighth Grade Students Enrolled",null,null,0]
[15,null,"YES","YES",null,null,null,null,null,0]
[16,null,"YES","YES",null,"Ineffective (IE):","Less than 26% of Eligible Eighth Grade Students Enrolled",null,null,0]
[17,null,"YES","YES",null,null,null,null,null,0]
[18,null,"YES","YES",null,null,null,null,null,0]
[19,null,"YES","YES",null,null,null,null,null,0]
[20,null,"YES","YES",null,null,null,null,null,0]
[21,null,"YES","YES",null,null,null,null,null,0]
[22,null,"YES","YES",null,null,null,null,null,0]
[23,null,"YES","YES",null,null,null,null,null,0]
[24,null,"YES","YES",null,null,null,null,null,0]
[25,null,"YES","YES",null,null,null,null,null,0]
[26,null,"YES","YES",null,null,null,null,null,0]
[27,null,"YES","YES",null,null,null,null,null,0]
[28,null,"YES","YES",null,null,null,null,null,0]
[29,null,"YES","YES",null,null,null,null,null,0]
[30,null,"YES","YES",null,null,null,null,null,0]
[31,null,"YES","YES",null,null,null,null,null,0]
[32,null,"YES","YES",null,null,null,null,null,0]
[33,null,"YES","YES",null,null,null,null,null,0]
[34,null,"YES","YES",null,null,null,null,null,0]
[35,null,"YES","YES",null,null,null,null,null,0]
[36,null,"YES","YES",null,null,null,null,null,0]
[37,null,"YES","YES",null,null,null,null,null,0]
[38,null,"YES","YES",null,null,null,null,null,0]
[39,null,"YES","YES",null,null,null,null,null,0]
[40,null,"YES","YES",null,null,null,null,null,0]
[41,null,"YES","YES",null,null,null,null,null,0]
[42,null,"YES","YES",null,null,null,null,null,0]
[43,null,"YES","YES",null,null,null,null,null,0]
[44,null,"YES","YES",null,null,null,null,null,0]
[45,null,"YES","YES",null,null,null,null,null,0]
[46,null,"YES","YES",null,null,null,null,null,0]
[47,null,"YES","YES",null,null,null,null,null,0]
[48,null,"YES","YES",null,null,null,null,null,0]
[49,null,"YES","YES",null,null,null,null,null,0]
[50,null,"YES","YES",null,null,null,null,null,0]
[51,null,"YES","YES",null,null,null,null,null,0]
[52,null,"YES","YES",null,null,null,null,null,0]
[53,null,"YES","YES",null,null,null,null,null,0]
[54,null,"YES","YES",null,null,null,null,null,0]
[55,null,"YES","YES",null,null,null,null,null,0]
[56,null,"YES","YES",null,null,null,null,null,0]
[57,null,"YES","YES",null,null,null,null,null,0]
[58,null,"YES","YES",null,null,null,null,null,0]
[59,null,"YES","YES",null,null,null,null,null,0]
[60,null,"YES","YES",null,null,null,null,null,0]
[61,null,"YES","YES",null,null,null,null,null,0]
[62,null,"YES","YES",null,null,null,null,null,0]
[63,null,"YES","YES",null,null,null,null,null,0]
[64,null,"YES","YES",null,null,null,null,null,0]
[65,null,"YES","YES",null,null,null,null,null,0]
[66,null,"YES","YES",null,null,null,null,null,{"$f":"COUNTA(B68)","v":0}]
[67,null,"YES","YES",null,null,null,null,null,0]
[68,null,"YES","YES",null,null,null,null,null,0]
[69,null,"YES","YES",null,null,null,null,null,0]
[70,null,"YES","YES",null,null,null,null,null,0]
[71,null,"YES","YES",null,null,null,null,null,0]
[72,null,"YES","YES",null,null,null,null,null,0]
[73,null,"YES","YES",null,null,null,null,null,0]
[74,null,"YES","YES",null,null,null,null,null,0]
[75,null,"YES","YES",null,null,null,null,null,0]
[76,null,"YES","YES",null,null,null,null,null,0]
[77,null,"YES","YES",null,null,null,null,null,0]
[78,null,"YES","YES",null,null,null,null,null,0]
[79,null,"YES","YES",null,null,null,null,null,0]
[80,null,"YES","YES",null,null,null,null,null,0]
[81,null,"YES","YES",null,null,null,null,null,0]
[82,null,"YES","YES",null,null,null,null,null,0]
[83,null,"YES","YES",null,null,null,null,null,0]
[84,null,"YES","YES",null,null,null,null,null,0]
[85,null,"YES","YES",null,null,null,null,null,0]
[86,null,"YES","YES",null,null,null,null,null,0]
[87,null,"YES","YES",null,null,null,null,null,0]
[88,null,"YES","YES",null,null,null,null,null,0]
[89,null,"YES","YES",null,null,null,null,null,0]
[90,null,"YES","YES",null,null,null,null,null,0]
[91,null,"YES","YES",null,null,null,null,null,0]
[92,null,"YES","YES",null,null,null,null,null,0]
[93,null,"YES","YES",null,null,null,null,null,0]
[94,null,"YES","YES",null,null,null,null,null,0]
[95,null,"YES","YES",null,null,null,null,null,0]
[96,null,"YES","YES",null,null,null,null,null,0]
[97,null,"YES","YES",null,null,null,null,null,0]
[98,null,"YES","YES",null,null,null,null,null,0]
[99,null,"YES","YES",null,null,null,null,null,0]
[100,null,"YES","YES",null,null,null,null,null,0]
[101,null,"YES","YES",null,null,null,null,null,0]
[102,null,"YES","YES",null,null,null,null,null,0]
[103,null,"YES","YES",null,null,null,null,null,0]
[104,null,"YES","YES",null,null,null,null,null,0]
[105,null,"YES","YES",null,null,null,null,null,0]
[106,null,"YES","YES",null,null,null,null,null,0]
[107,null,"YES","YES",null,null,null,null,null,0]
[108,null,"YES","YES",null,null,null,null,null,0]
[109,null,"YES","YES",null,null,null,null,null,0]
[110,null,"YES","YES",null,null,null,null,null,0]
[111,null,"YES","YES",null,null,null,null,null,0]
[112,null,"YES","YES",null,null,null,null,null,0]
[113,null,"YES","YES",null,null,null,null,null,0]
[114,null,"YES","YES",null,null,null,null,null,0]
[115,null,"YES","YES",null,null,null,null,null,0]
[116,null,"YES","YES",null,null,null,null,null,0]
[117,null,"YES","YES",null,null,null,null,null,0]
[118,null,"YES","YES",null,null,null,null,null,0]
[119,null,"YES","YES",null,null,null,null,null,0]
[120,null,"YES","YES",null,null,null,null,null,0]
[121,null,"YES","YES",null,null,null,null,null,0]
[122,null,"YES","YES",null,null,null,null,null,0]
[123,null,"YES","YES",null,null,null,null,null,0]
[124,null,"YES","YES",null,null,null,null,null,0]
[125,null,"YES","YES",null,null,null,null,null,0]
[126,null,"YES","YES",null,null,null,null,null,0]
[127,null,"YES","YES",null,null,null,null,null,0]
[128,null,"YES","YES",null,null,null,null,null,0]
[129,null,"YES","YES",null,null,null,null,null,0]
[130,null,"YES","YES",null,null,null,null,null,{"$f":"COUNTA(B132)","v":0}]
[131,null,"YES","YES",null,null,null,null,null,0]
[132,null,"YES","YES",null,null,null,null,null,0]
[133,null,"YES","YES",null,null,null,null,null,0]
[134,null,"YES","YES",null,null,null,null,null,0]
[135,null,"YES","YES",null,null,null,null,null,0]
[136,null,"YES","YES",null,null,null,null,null,0]
[137,null,"YES","YES",null,null,null,null,null,0]
[138,null,"YES","YES",null,null,null,null,null,0]
[139,null,"YES","YES",null,null,null,null,null,0]
[140,null,"YES","YES",null,null,null,null,null,0]
[141,null,"YES","YES",null,null,null,null,null,0]
[142,null,"YES","YES",null,null,null,null,null,0]
[143,null,"YES","YES",null,null,null,null,null,0]
[144,null,"YES","YES",null,null,null,null,null,0]
[145,null,"YES","YES",null,null,null,null,null,0]
[146,null,"YES","YES",null,null,null,null,null,0]
[147,null,"YES","YES",null,null,null,null,null,0]
[148,null,"YES","YES",null,null,null,null,null,0]
[149,null,"YES","YES",null,null,null,null,null,0]
[150,null,"YES","YES",null,null,null,null,null,0]
[151,null,"YES","YES",null,null,null,null,null,0]
[152,null,"YES","YES",null,null,null,null,null,0]
[153,null,"YES","YES",null,null,null,null,null,0]
[154,null,"YES","YES",null,null,null,null,null,0]
[155,null,"YES","YES",null,null,null,null,null,0]
[156,null,"YES","YES",null,null,null,null,null,0]
[157,null,"YES","YES",null,null,null,null,null,0]
[158,null,"YES","YES",null,null,null,null,null,0]
[159,null,"YES","YES",null,null,null,null,null,0]
[160,null,"YES","YES",null,null,null,null,null,0]
[161,null,"YES","YES",null,null,null,null,null,0]
[162,null,"YES","YES",null,null,null,null,null,0]
[163,null,"YES","YES",null,null,null,null,null,0]
[164,null,"YES","YES",null,null,null,null,null,0]
[165,null,"YES","YES",null,null,null,null,null,0]
[166,null,"YES","YES",null,null,null,null,null,0]
[167,null,"YES","YES",null,null,null,null,null,0]
[168,null,"YES","YES",null,null,null,null,null,0]
[169,null,"YES","YES",null,null,null,null,null,0]
[170,null,"YES","YES",null,null,null,null,null,0]
[171,null,"YES","YES",null,null,null,null,null,0]
[172,null,"YES","YES",null,null,null,null,null,0]
[173,null,"YES","YES",null,null,null,null,null,0]
[174,null,"YES","YES",null,null,null,null,null,0]
[175,null,"YES","YES",null,null,null,null,null,0]
[176,null,"YES","YES",null,null,null,null,null,0]
[177,null,"YES","YES",null,null,null,null,null,0]
[178,null,"YES","YES",null,null,null,null,null,0]
[179,null,"YES","YES",null,null,null,null,null,0]
[180,null,"YES","YES",null,null,null,null,null,0]
[181,null,"YES","YES",null,null,null,null,null,0]
[182,null,"YES","YES",null,null,null,null,null,0]
[183,null,"YES","YES",null,null,null,null,null,0]
[184,null,"YES","YES",null,null,null,null,null,0]
[185,null,"YES","YES",null,null,null,null,null,0]
[186,null,"YES","YES",null,null,null,null,null,0]
[187,null,"YES","YES",null,null,null,null,null,0]
[188,null,"YES","YES",null,null,null,null,null,0]
[189,null,"YES","YES",null,null,null,null,null,0]
[190,null,"YES","YES",null,null,null,null,null,0]
[191,null,"YES","YES",null,null,null,null,null,0]
[192,null,"YES","YES",null,null,null,null,null,0]
[193,null,"YES","YES",null,null,null,null,null,0]
[194,null,"YES","YES",null,null,null,null,null,0]
[195,null,"YES","YES",null,null,null,null,null,0]
[196,null,"YES","YES",null,null,null,null,null,0]
[197,null,"YES","YES",null,null,null,null,null,0]
[198,null,"YES","YES",null,null,null,null,null,0]
[199,null,"YES","YES",null,null,null,null,null,0]
[200,null,"YES","YES",null,null,null,null,null,0]
[201,null,"YES","YES",null,null,null,null,null,0]
[202,null,"YES","YES",null,null,null,null,null,0]
[203,null,"YES","YES",null,null,null,null,null,0]
[204,null,"YES","YES",null,null,null,null,null,0]
[205,null,"YES","YES",null,null,null,null,null,0]
[206,null,"YES","YES",null,null,null,null,null,0]
[207,null,"YES","YES",null,null,null,null,null,0]
[208,null,"YES","YES",null,null,null,null,null,0]
[209,null,"YES","YES",null,null,null,null,null,0]
[210,null,"YES","YES",null,null,null,null,null,0]
[211,null,"YES","YES",null,null,null,null,null,0]
[212,null,"YES","YES",null,null,null,null,null,0]
[213,null,"YES","YES",null,null,null,null,null,0]
[214,null,"YES","YES",null,null,null,null,null,0]
[215,null,"YES","YES",null,null,null,null,null,0]
[216,null,"YES","YES",null,null,null,null,null,0]
[217,null,"YES","YES",null,null,null,null,null,0]
[218,null,"YES","YES",null,null,null,null,null,0]
[219,null,"YES","YES",null,null,null,null,null,0]
[220,null,"YES","YES",null,null,null,null,null,0]
[221,null,"YES","YES",null,null,null,null,null,0]
[222,null,"YES","YES",null,null,null,null,null,0]
[223,null,"YES","YES",null,null,null,null,null,0]
[224,null,"YES","YES",null,null,null,null,null,0]
[225,null,"YES","YES",null,null,null,null,null,0]
[226,null,"YES","YES",null,null,null,null,null,0]
[227,null,"YES","YES",null,null,null,null,null,0]
[228,null,"YES","YES",null,null,null,null,null,0]
[229,null,"YES","YES",null,null,null,null,null,0]
[230,null,"YES","YES",null,null,null,null,null,0]
[231,null,"YES","YES",null,null,null,null,null,0]
[232,null,"YES","YES",null,null,null,null,null,0]
[233,null,"YES","YES",null,null,null,null,null,0]
[234,null,"YES","YES",null,null,null,null,null,0]
[235,null,"YES","YES",null,null,null,null,null,0]
[236,null,"YES","YES",null,null,null,null,null,0]
[237,null,"YES","YES",null,null,null,null,null,0]
[238,null,"YES","YES",null,null,null,null,null,0]
[239,null,"YES","YES",null,null,null,null,null,0]
[240,null,"YES","YES",null,null,null,null,null,0]
[241,null,"YES","YES",null,null,null,null,null,0]
[242,null,"YES","YES",null,null,null,null,null,0]
[243,null,"YES","YES",null,null,null,null,null,0]
[244,null,"YES","YES",null,null,null,null,null,0]
[245,null,"YES","YES",null,null,null,null,null,0]
[246,null,"YES","YES",null,null,null,null,null,0]
[247,null,"YES","YES",null,null,null,null,null,0]
[248,null,"YES","YES",null,null,null,null,null,0]
[249,null,"YES","YES",null,null,null,null,null,0]
[250,null,"YES","YES",null,null,null,null,null,0]
[251,null,"YES","YES",null,null,null,null,null,0]
[252,null,"YES","YES",null,null,null,null,null,0]
[253,null,"YES","YES",null,null,null,null,null,0]
[254,null,"YES","YES",null,null,null,null,null,0]
[255,null,"YES","YES",null,null,null,null,null,0]
[256,null,"YES","YES",null,null,null,null,null,0]
[257,null,"YES","YES",null,null,null,null,null,0]
[258,null,"YES","YES",null,null,null,null,null,0]
[259,null,"YES","YES",null,null,null,null,null,0]
[260,null,"YES","YES",null,null,null,null,null,0]
[261,null,"YES","YES",null,null,null,null,null,0]
[262,null,"YES","YES",null,null,null,null,null,0]
[263,null,"YES","YES",null,null,null,null,null,0]
[264,null,"YES","YES",null,null,null,null,null,0]
[265,null,"YES","YES",null,null,null,null,null,0]
[266,null,"YES","YES",null,null,null,null,null,0]
[267,null,"YES","YES",null,null,null,null,null,0]
[268,null,"YES","YES",null,null,null,null,null,0]
[269,null,"YES","YES",null,null,null,null,null,0]
[270,null,"YES","YES",null,null,null,null,null,0]
[271,null,"YES","YES",null,null,null,null,null,0]
[272,null,"YES","YES",null,null,null,null,null,0]
[273,null,"YES","YES",null,null,null,null,null,0]
[274,null,"YES","YES",null,null,null,null,null,0]
[275,null,"YES","YES",null,null,null,null,null,0]
[276,null,"YES","YES",null,null,null,null,null,0]
[277,null,"YES","YES",null,null,null,null,null,0]
[278,null,"YES","YES",null,null,null,null,null,0]
[279,null,"YES","YES",null,null,null,null,null,0]
[280,null,"YES","YES",null,null,null,null,null,0]
[281,null,"YES","YES",null,null,null,null,null,0]
[282,null,"YES","YES",null,null,null,null,null,0]
[283,null,"YES","YES",null,null,null,null,null,0]
[284,null,"YES","YES",null,null,null,null,null,0]
[285,null,"YES","YES",null,null,null,null,null,0]
[286,null,"YES","YES",null,null,null,null,null,0]
[287,null,"YES","YES",null,null,null,null,null,0]
[288,null,"YES","YES",null,null,null,null,null,0]
[289,null,"YES","YES",null,null,null,null,null,0]
[290,null,"YES","YES",null,null,null,null,null,0]
[291,null,"YES","YES",null,null,null,null,null,0]
[292,null,"YES","YES",null,null,null,null,null,0]
[293,null,"YES","YES",null,null,null,null,null,0]
[294,null,"YES","YES",null,null,null,null,null,0]
[295,null,"YES","YES",null,null,null,null,null,0]
[296,null,"YES","YES",null,null,null,null,null,0]
[297,null,"YES","YES",null,null,null,null,null,0]
[298,null,"YES","YES",null,null,null,null,null,0]
[299,null,"YES","YES",null,null,null,null,null,0]
[300,null,"YES","YES",null,null,null,null,null,0]
[301,null,"YES","YES",null,null,null,null,null,0]
[302,null,"YES","YES",null,null,null,null,null,0]
[303,null,"YES","YES",null,null,null,null,null,0]
[304,null,"YES","YES",null,null,null,null,null,0]
[305,null,"YES","YES",null,null,null,null,null,0]
[306,null,"YES","YES",null,null,null,null,null,0]
[307,null,"YES","YES",null,null,null,null,null,0]
[308,null,"YES","YES",null,null,null,null,null,0]
[309,null,"YES","YES",null,null,null,null,null,0]
[310,null,"YES","YES",null,null,null,null,null,0]
[311,null,"YES","YES",null,null,null,null,null,0]
[312,null,"YES","YES",null,null,null,null,null,0]
[313,null,"YES","YES",null,null,null,null,null,0]
[314,null,"YES","YES",null,null,null,null,null,0]
[315,null,"YES","YES",null,null,null,null,null,0]
[]
[]
[]
[]
[]
[]
[]
["After approval from your evaluator, enter the names of students whose data will not be used with a brief explanation why."]
[null,"Student Name","Reason for removing student from evaluative data"]
[null,{"$f":"IF(D3=\"NO\",B3, \"DELETE\")","v":"DELETE"}]
[null,"DELETE"]
[null,"DELETE"]
[null,"DELETE"]
[null,"DELETE"]
[null,"DELETE"]
[null,"DELETE"]
[null,"DELETE"]
[null,"DELETE"]
[null,"DELETE"]
[null,"DELETE"]
[null,"DELETE"]
[null,"DELETE"]
[null,"DELETE"]
[null,"DELETE"]
[null,"DELETE"]
[null,"DELETE"]
[null,"DELETE"]
[null,"DELETE"]
[null,"DELETE"]
[null,"DELETE"]
[null,"DELETE"]
[null,"DELETE"]
[null,"DELETE"]
[null,"DELETE"]
[null,"DELETE"]
[null,"DELETE"]
[null,"DELETE"]
[null,"DELETE"]
[null,"DELETE"]
[null,"DELETE"]
[null,"DELETE"]
[null,"DELETE"]
[null,"DELETE"]
[null,"DELETE"]
[null,"DELETE"]
[null,"DELETE"]
[null,"DELETE"]
[null,"DELETE"]
[null,"DELETE"]
[null,"DELETE"]
[null,"DELETE"]
[null,"DELETE"]
[null,"DELETE"]
[null,"DELETE"]
[null,"DELETE"]
[null,"DELETE"]
[null,"DELETE"]
[null,"DELETE"]
[null,"DELETE"]
[null,"DELETE"]
[null,"DELETE"]
[null,"DELETE"]
[null,"DELETE"]
[null,"DELETE"]
[null,"DELETE"]
[null,"DELETE"]
[null,"DELETE"]
[null,"DELETE"]
[null,"DELETE"]
[null,"DELETE"]
[null,"DELETE"]
[null,"DELETE"]
[null,"DELETE"]
[null,{"$f":"IF(D67=\"NO\",B67, \"DELETE\")","v":"DELETE"}]
[null,"DELETE"]
[null,"DELETE"]
[null,"DELETE"]
[null,"DELETE"]
[null,"DELETE"]
[null,"DELETE"]
[null,"DELETE"]
[null,"DELETE"]
[null,"DELETE"]
[null,"DELETE"]
[null,"DELETE"]
[null,"DELETE"]
[null,"DELETE"]
[null,"DELETE"]
[null,"DELETE"]
[null,"DELETE"]
[null,"DELETE"]
[null,"DELETE"]
[null,"DELETE"]
[null,"DELETE"]
[null,"DELETE"]
[null,"DELETE"]
[null,"DELETE"]
[null,"DELETE"]
[null,"DELETE"]
[null,"DELETE"]
[null,"DELETE"]
[null,"DELETE"]
[null,"DELETE"]
[null,"DELETE"]
[null,"DELETE"]
[null,"DELETE"]
[null,"DELETE"]
[null,"DELETE"]
[null,"DELETE"]
[null,"DELETE"]
[null,"DELETE"]
[null,"DELETE"]
[null,"DELETE"]
[null,"DELETE"]
[null,"DELETE"]
[null,"DELETE"]
[null,"DELETE"]
[null,"DELETE"]
[null,"DELETE"]
[null,"DELETE"]
[null,"DELETE"]
[null,"DELETE"]
[null,"DELETE"]
[null,"DELETE"]
[null,"DELETE"]
[null,"DELETE"]
[null,"DELETE"]
[null,"DELETE"]
[null,"DELETE"]
[null,"DELETE"]
[null,"DELETE"]
[null,"DELETE"]
[null,"DELETE"]
[null,"DELETE"]
[null,"DELETE"]
[null,"DELETE"]
[null,"DELETE"]
[null,{"$f":"IF(D131=\"NO\",B131, \"DELETE\")","v":"DELETE"}]
[null,"DELETE"]
[null,"DELETE"]
[null,"DELETE"]
[null,"DELETE"]
[null,"DELETE"]
[null,"DELETE"]
[null,"DELETE"]
[null,"DELETE"]
[null,"DELETE"]
[null,"DELETE"]
[null,"DELETE"]
[null,"DELETE"]
[null,"DELETE"]
[null,"DELETE"]
[null,"DELETE"]
[null,"DELETE"]
[null,"DELETE"]
[null,"DELETE"]
[null,"DELETE"]
[null,"DELETE"]
[null,"DELETE"]
[null,"DELETE"]
[null,"DELETE"]
[null,"DELETE"]
[null,"DELETE"]
[null,"DELETE"]
[null,"DELETE"]
[null,"DELETE"]
[null,"DELETE"]
[null,"DELETE"]
[null,"DELETE"]
[null,"DELETE"]
[null,"DELETE"]
[null,"DELETE"]
[null,"DELETE"]
[null,"DELETE"]
[null,"DELETE"]
[null,"DELETE"]
[null,"DELETE"]
[null,"DELETE"]
[null,"DELETE"]
[null,"DELETE"]
[null,"DELETE"]
[null,"DELETE"]
[null,"DELETE"]
[null,"DELETE"]
[null,"DELETE"]
[null,"DELETE"]
[null,"DELETE"]
[null,"DELETE"]
[null,"DELETE"]
[null,"DELETE"]
[null,"DELETE"]
[null,"DELETE"]
[null,"DELETE"]
[null,"DELETE"]
[null,"DELETE"]
[null,"DELETE"]
[null,"DELETE"]
[null,"DELETE"]
[null,"DELETE"]
[null,"DELETE"]
[null,"DELETE"]
[null,{"$f":"IF(D195=\"NO\",B195, \"DELETE\")","v":"DELETE"}]
[null,"DELETE"]
[null,"DELETE"]
[null,"DELETE"]
[null,"DELETE"]
[null,"DELETE"]
[null,"DELETE"]
[null,"DELETE"]
[null,"DELETE"]
[null,"DELETE"]
[null,"DELETE"]
[null,"DELETE"]
[null,"DELETE"]
[null,"DELETE"]
[null,"DELETE"]
[null,"DELETE"]
[null,"DELETE"]
[null,"DELETE"]
[null,"DELETE"]
[null,"DELETE"]
[null,"DELETE"]
[null,"DELETE"]
[null,"DELETE"]
[null,"DELETE"]
[null,"DELETE"]
[null,"DELETE"]
[null,"DELETE"]
[null,"DELETE"]
[null,"DELETE"]
[null,"DELETE"]
[null,"DELETE"]
[null,"DELETE"]
[null,"DELETE"]
[null,"DELETE"]
[null,"DELETE"]
[null,"DELETE"]
[null,"DELETE"]
[null,"DELETE"]
[null,"DELETE"]
[null,"DELETE"]
[null,"DELETE"]
[null,"DELETE"]
[null,"DELETE"]
[null,"DELETE"]
[null,"DELETE"]
[null,"DELETE"]
[null,"DELETE"]
[null,"DELETE"]
[null,"DELETE"]
[null,"DELETE"]
[null,"DELETE"]
[null,"DELETE"]
[null,"DELETE"]
[null,"DELETE"]
[null,"DELETE"]
[null,"DELETE"]
[null,"DELETE"]
[null,"DELETE"]
[null,"DELETE"]
[null,"DELETE"]
[null,"DELETE"]
[null,"DELETE"]
[null,"DELETE"]
[null,"DELETE"]
[null,{"$f":"IF(D259=\"NO\",B259, \"DELETE\")","v":"DELETE"}]
[null,"DELETE"]
[null,"DELETE"]
[null,"DELETE"]
[null,"DELETE"]
[null,"DELETE"]
[null,"DELETE"]
[null,"DELETE"]
[null,"DELETE"]
[null,"DELETE"]
[null,"DELETE"]
[null,"DELETE"]
[null,"DELETE"]
[null,"DELETE"]
[null,"DELETE"]
[null,"DELETE"]
[null,"DELETE"]
[null,"DELETE"]
[null,"DELETE"]
[null,"DELETE"]
[null,"DELETE"]
[null,"DELETE"]
[null,"DELETE"]
[null,"DELETE"]
[null,"DELETE"]
[null,"DELETE"]
[null,"DELETE"]
[null,"DELETE"]
[null,"DELETE"]
[null,"DELETE"]
[null,"DELETE"]
[null,"DELETE"]
[null,"DELETE"]
[null,"DELETE"]
[null,"DELETE"]
[null,"DELETE"]
[null,"DELETE"]
[null,"DELETE"]
[null,"DELETE"]
[null,"DELETE"]
[null,"DELETE"]
[null,"DELETE"]
[null,"DELETE"]
[null,"DELETE"]
[null,"DELETE"]
[null,"DELETE"]
[null,"DELETE"]
[null,"DELETE"]
[null,"DELETE"]
[null,"DELETE"]
[null,"DELETE"]
[null,"DELETE"]
[null,"DELETE"]
[null,"DELETE"]
[null,"DELETE"]
[null,"DELETE"]
[null,"DELETE"]
[null,"DELETE"]
[null,"DELETE"]